[Event "*** Titled Tuesday Blitz"]
[Site "Chess.com"]
[Date "2020.04.14"]
[Round "9"]
[White "WhiteKnight2612"]
[Black "IljaJoke"]
[Result "0-1"]
[WhiteElo "2675"]
[BlackElo "2528"]
[TimeControl "180+1"]
[EndTime "11:44:01 PDT"]
[Termination "IljaJoke won on time"]

1. e4 {[%clk 0:03:00.9]} 1... g6 {[%clk 0:02:56.8]} 2. Bc4 {[%clk 0:03:00.9]}
2... Bg7 {[%clk 0:02:50]} 3. Qf3 {[%clk 0:03:01.2]} 3... e6 {[%clk 0:02:49.7]}
4. Ne2 {[%clk 0:02:59.6]} 4... Ne7 {[%clk 0:02:47.4]} 5. d4 {[%clk 0:02:58.4]}
5... d5 {[%clk 0:02:46.7]} 6. Bd3 {[%clk 0:02:58.7]} 6... dxe4 {[%clk
0:02:42.9]} 7. Bxe4 {[%clk 0:02:59.6]} 7... Nbc6 {[%clk 0:02:42]} 8. c3 {[%clk
0:02:58.9]} 8... O-O {[%clk 0:02:41.9]} 9. O-O {[%clk 0:02:58]} 9... e5 {[%clk
0:02:33.4]} 10. d5 {[%clk 0:02:52.1]} 10... f5 {[%clk 0:02:33.4]} 11. dxc6
{[%clk 0:02:50.8]} 11... fxe4 {[%clk 0:02:33.5]} 12. Qxe4 {[%clk 0:02:44.2]}
12... Nxc6 {[%clk 0:02:33.1]} 13. Ng3 {[%clk 0:02:43.9]} 13... Bf5 {[%clk
0:02:23.6]} 14. Qc4+ {[%clk 0:02:38.7]} 14... Kh8 {[%clk 0:02:23.8]} 15. Be3
{[%clk 0:02:36.5]} 15... Bd3 {[%clk 0:02:14]} 16. Qb3 {[%clk 0:02:35.4]} 16...
Bxf1 {[%clk 0:02:13.8]} 17. Nxf1 {[%clk 0:02:32.9]} 17... b6 {[%clk 0:02:08.7]}
18. Nbd2 {[%clk 0:02:32.6]} 18... Qd3 {[%clk 0:01:59.2]} 19. Qa4 {[%clk
0:02:25]} 19... Ne7 {[%clk 0:01:55.7]} 20. Rd1 {[%clk 0:02:14.1]} 20... Rad8
{[%clk 0:01:42]} 21. Bg5 {[%clk 0:02:09]} 21... Bf6 {[%clk 0:01:34.8]} 22. Bxf6+
{[%clk 0:02:03]} 22... Rxf6 {[%clk 0:01:35.7]} 23. Ne3 {[%clk 0:02:02.7]} 23...
Qe2 {[%clk 0:01:33.3]} 24. Ne4 {[%clk 0:01:56.4]} 24... Rxd1+ {[%clk 0:01:29.2]}
25. Qxd1 {[%clk 0:01:57.3]} 25... Qxd1+ {[%clk 0:01:26.1]} 26. Nxd1 {[%clk
0:01:58.2]} 26... Rf8 {[%clk 0:01:23.5]} 27. f3 {[%clk 0:01:52.3]} 27... Rd8
{[%clk 0:01:21.9]} 28. Ne3 {[%clk 0:01:52.7]} 28... Nf5 {[%clk 0:01:21.6]} 29.
Nc4 {[%clk 0:01:52]} 29... Nd6 {[%clk 0:01:11.6]} 30. Nxe5 {[%clk 0:01:49.5]}
30... Kg7 {[%clk 0:01:08.4]} 31. Nc6 {[%clk 0:01:40]} 31... Re8 {[%clk
0:01:04.1]} 32. Nxd6 {[%clk 0:01:39.9]} 32... cxd6 {[%clk 0:01:05]} 33. Kf1
{[%clk 0:01:39.8]} 33... Rc8 {[%clk 0:00:54.9]} 34. Nd4 {[%clk 0:01:32.7]} 34...
a6 {[%clk 0:00:51.8]} 35. Ke2 {[%clk 0:01:32.6]} 35... Kf6 {[%clk 0:00:52.2]}
36. Kd3 {[%clk 0:01:33]} 36... Ke5 {[%clk 0:00:51.4]} 37. g3 {[%clk 0:01:30.6]}
37... g5 {[%clk 0:00:51.6]} 38. Ne2 {[%clk 0:01:30.7]} 38... d5 {[%clk
0:00:48.5]} 39. Nd4 {[%clk 0:01:30]} 39... h5 {[%clk 0:00:47.5]} 40. Ke3 {[%clk
0:01:28.3]} 40... h4 {[%clk 0:00:45.1]} 41. f4+ {[%clk 0:01:26.3]} 41... gxf4+
{[%clk 0:00:45.4]} 42. gxf4+ {[%clk 0:01:26.1]} 42... Kf6 {[%clk 0:00:45.8]} 43.
Nf3 {[%clk 0:01:24.5]} 43... h3 {[%clk 0:00:42.4]} 44. Ng5 {[%clk 0:01:22.9]}
44... Kf5 {[%clk 0:00:42.8]} 45. Kf3 {[%clk 0:01:20.7]} 45... d4 {[%clk
0:00:39.4]} 46. cxd4 {[%clk 0:01:17.5]} 46... Rc2 {[%clk 0:00:40.3]} 47. Nxh3
{[%clk 0:01:00]} 47... Rxb2 {[%clk 0:00:34.5]} 48. Nf2 {[%clk 0:00:58.6]} 48...
Rxa2 {[%clk 0:00:33.6]} 49. Ke3 {[%clk 0:00:51.4]} 49... b5 {[%clk 0:00:28.8]}
50. d5 {[%clk 0:00:48.1]} 50... b4 {[%clk 0:00:24.8]} 51. Nd3 {[%clk 0:00:17.3]}
51... b3 {[%clk 0:00:24.8]} 52. d6 {[%clk 0:00:15.8]} 52... Ke6 {[%clk
0:00:20.5]} 53. f5+ {[%clk 0:00:00.7]} 53... Kxd6 {[%clk 0:00:18.2]} 0-1

[Event "*** Titled Tuesday Blitz"]
[Site "Chess.com"]
[Date "2020.04.14"]
[Round "9"]
[White "Borsuk_Konstantin"]
[Black "Tiqr777"]
[Result "1-0"]
[WhiteElo "2501"]
[BlackElo "2619"]
[TimeControl "180+1"]
[EndTime "11:44:02 PDT"]
[Termination "Borsuk_Konstantin won by resignation"]

1. d4 {[%clk 0:03:00.9]} 1... d5 {[%clk 0:02:58.8]} 2. c4 {[%clk 0:03:00.9]}
2... dxc4 {[%clk 0:02:57.9]} 3. Nf3 {[%clk 0:03:00.2]} 3... e6 {[%clk 0:02:56]}
4. e3 {[%clk 0:02:59.7]} 4... c5 {[%clk 0:02:54.2]} 5. Bxc4 {[%clk 0:02:58.4]}
5... Nc6 {[%clk 0:02:54.4]} 6. dxc5 {[%clk 0:02:56.1]} 6... Qxd1+ {[%clk
0:02:53.3]} 7. Kxd1 {[%clk 0:02:57]} 7... Bxc5 {[%clk 0:02:53.6]} 8. Ke2 {[%clk
0:02:55.3]} 8... Nf6 {[%clk 0:02:53.5]} 9. a3 {[%clk 0:02:54.6]} 9... a6 {[%clk
0:02:53.9]} 10. b4 {[%clk 0:02:54.5]} 10... Ba7 {[%clk 0:02:53.4]} 11. Bb2
{[%clk 0:02:52.5]} 11... b5 {[%clk 0:02:53.4]} 12. Bd3 {[%clk 0:02:52.5]} 12...
Bb7 {[%clk 0:02:53.1]} 13. Nbd2 {[%clk 0:02:52.8]} 13... O-O-O {[%clk
0:02:52.8]} 14. Nb3 {[%clk 0:02:49.6]} 14... Kb8 {[%clk 0:02:47.9]} 15. Rac1
{[%clk 0:02:48.7]} 15... Rd5 {[%clk 0:02:39.9]} 16. e4 {[%clk 0:02:40.5]} 16...
Rd7 {[%clk 0:02:36.6]} 17. Nc5 {[%clk 0:02:40.2]} 17... Bxc5 {[%clk 0:02:35.7]}
18. Rxc5 {[%clk 0:02:41.1]} 18... Rhd8 {[%clk 0:02:35.5]} 19. Bb1 {[%clk
0:02:39.5]} 19... Ne7 {[%clk 0:02:20]} 20. Be5+ {[%clk 0:02:20.9]} 20... Ka8
{[%clk 0:02:15.9]} 21. Bxf6 {[%clk 0:02:06.8]} 21... gxf6 {[%clk 0:02:16.4]} 22.
Ke3 {[%clk 0:02:01.8]} 22... Kb8 {[%clk 0:01:56.1]} 23. Rhc1 {[%clk 0:02:00.7]}
23... Ng6 {[%clk 0:01:51.5]} 24. g3 {[%clk 0:01:57.8]} 24... Rd1 {[%clk
0:01:49]} 25. Ke2 {[%clk 0:01:46.5]} 25... Rxc1 {[%clk 0:01:48]} 26. Rxc1 {[%clk
0:01:47.4]} 26... Ne5 {[%clk 0:01:47.6]} 27. Nxe5 {[%clk 0:01:44.1]} 27... fxe5
{[%clk 0:01:48.2]} 28. Rc5 {[%clk 0:01:40.2]} 28... f6 {[%clk 0:01:48.1]} 29. f3
{[%clk 0:01:39.5]} 29... Rc8 {[%clk 0:01:38.5]} 30. Rxc8+ {[%clk 0:01:28.2]}
30... Kxc8 {[%clk 0:01:39.1]} 31. f4 {[%clk 0:01:25.3]} 31... exf4 {[%clk
0:01:36.7]} 32. gxf4 {[%clk 0:01:26.2]} 32... e5 {[%clk 0:01:36.5]} 33. Kf3
{[%clk 0:01:12.8]} 33... Kd7 {[%clk 0:01:34.1]} 34. fxe5 {[%clk 0:01:12.6]}
34... fxe5 {[%clk 0:01:33.5]} 35. Kg4 {[%clk 0:01:12.8]} 35... Ke6 {[%clk
0:01:23]} 36. Kg5 {[%clk 0:01:12.5]} 36... Bc6 {[%clk 0:01:13.6]} 37. h4 {[%clk
0:01:08.9]} 37... Be8 {[%clk 0:01:08]} 38. Ba2+ {[%clk 0:01:08]} 38... Kd6
{[%clk 0:01:07.6]} 39. Bd5 {[%clk 0:01:03.1]} 39... h5 {[%clk 0:01:03.2]} 40.
Kf6 {[%clk 0:01:01.5]} 40... Bd7 {[%clk 0:00:59.3]} 41. Bf7 {[%clk 0:01:00.2]}
41... Bc6 {[%clk 0:00:58.1]} 42. Bg6 {[%clk 0:00:58.6]} 42... Bb7 {[%clk
0:00:54.4]} 43. Kg5 {[%clk 0:00:49.1]} 43... Ke6 {[%clk 0:00:51.6]} 44. Bf5+
{[%clk 0:00:47]} 44... Kf7 {[%clk 0:00:41.2]} 45. Kxh5 {[%clk 0:00:42.3]} 45...
Kf6 {[%clk 0:00:39.6]} 46. Kg4 {[%clk 0:00:42.1]} 46... Bc6 {[%clk 0:00:39.1]}
47. h5 {[%clk 0:00:41.6]} 47... Be8 {[%clk 0:00:39.2]} 48. h6 {[%clk 0:00:40.8]}
48... Bf7 {[%clk 0:00:39.5]} 49. h7 {[%clk 0:00:39.7]} 49... Kg7 {[%clk
0:00:37.7]} 50. Bc8 {[%clk 0:00:38.6]} 50... Bg6 {[%clk 0:00:37.1]} 51. Bxa6
{[%clk 0:00:32.7]} 51... Bxe4 {[%clk 0:00:36.2]} 52. Bxb5 {[%clk 0:00:32.2]}
52... Kxh7 {[%clk 0:00:36.3]} 53. a4 {[%clk 0:00:27.4]} 53... Kg6 {[%clk
0:00:34.4]} 54. a5 {[%clk 0:00:25.2]} 54... Kf6 {[%clk 0:00:34]} 55. Bc4 {[%clk
0:00:15.3]} 55... Ke7 {[%clk 0:00:33.6]} 56. Kg5 {[%clk 0:00:14.7]} 56... Kd6
{[%clk 0:00:33]} 57. Kg4 {[%clk 0:00:13.8]} 57... Ba8 {[%clk 0:00:33.4]} 58. Kg3
{[%clk 0:00:13.9]} 58... Bb7 {[%clk 0:00:32]} 59. Kf2 {[%clk 0:00:14.3]} 59...
Ba8 {[%clk 0:00:31.8]} 60. Ke3 {[%clk 0:00:15.2]} 60... Bb7 {[%clk 0:00:31.9]}
61. Bd3 {[%clk 0:00:15.7]} 61... Bc8 {[%clk 0:00:28.2]} 62. Be4 {[%clk
0:00:11.9]} 62... Ba6 {[%clk 0:00:28.2]} 63. Kd2 {[%clk 0:00:12.3]} 63... Bc8
{[%clk 0:00:25.8]} 64. Kc3 {[%clk 0:00:12.6]} 64... Bd7 {[%clk 0:00:21.8]} 65.
Kc4 {[%clk 0:00:11.9]} 65... Be6+ {[%clk 0:00:21]} 66. Kb5 {[%clk 0:00:12.1]}
66... Bd7+ {[%clk 0:00:21.4]} 67. Kb6 {[%clk 0:00:12.2]} 1-0

[Event "*** Titled Tuesday Blitz"]
[Site "Chess.com"]
[Date "2020.04.14"]
[Round "9"]
[White "hongnhung1234"]
[Black "FeketeBarika"]
[Result "1/2-1/2"]
[WhiteElo "2150"]
[BlackElo "2268"]
[TimeControl "180+1"]
[EndTime "11:44:03 PDT"]
[Termination "Game drawn - insufficient material"]

1. e4 {[%clk 0:03:00.9]} 1... e6 {[%clk 0:03:00.9]} 2. d4 {[%clk 0:03:00.7]}
2... d5 {[%clk 0:02:58.5]} 3. Nc3 {[%clk 0:03:00.9]} 3... Nf6 {[%clk 0:02:55]}
4. e5 {[%clk 0:03:00.9]} 4... Nfd7 {[%clk 0:02:54.6]} 5. Nce2 {[%clk 0:03:01]}
5... c5 {[%clk 0:02:54.1]} 6. c3 {[%clk 0:03:01.3]} 6... Nc6 {[%clk 0:02:54.2]}
7. f4 {[%clk 0:02:55.7]} 7... cxd4 {[%clk 0:02:52.1]} 8. cxd4 {[%clk 0:02:56.6]}
8... Bb4+ {[%clk 0:02:51.8]} 9. Bd2 {[%clk 0:02:53.3]} 9... Qa5 {[%clk
0:02:42.8]} 10. Nf3 {[%clk 0:02:47.3]} 10... O-O {[%clk 0:02:40.1]} 11. Bxb4
{[%clk 0:02:44.3]} 11... Nxb4 {[%clk 0:02:37.8]} 12. Nc3 {[%clk 0:02:39]} 12...
f6 {[%clk 0:02:34.9]} 13. a3 {[%clk 0:02:32.9]} 13... Nc6 {[%clk 0:02:34.3]} 14.
Bd3 {[%clk 0:02:31.6]} 14... fxe5 {[%clk 0:02:33.2]} 15. fxe5 {[%clk 0:02:07.2]}
15... Qb6 {[%clk 0:02:10.5]} 16. Bxh7+ {[%clk 0:01:20.3]} 16... Kxh7 {[%clk
0:02:06.9]} 17. Ng5+ {[%clk 0:01:20.5]} 17... Kg6 {[%clk 0:01:36]} 18. Nxe6
{[%clk 0:01:09.2]} 18... Ndxe5 {[%clk 0:01:14.8]} 19. Nxf8+ {[%clk 0:01:06.8]}
19... Kh6 {[%clk 0:01:12.1]} 20. Qd2+ {[%clk 0:01:02.1]} 20... g5 {[%clk
0:01:10.9]} 21. dxe5 {[%clk 0:00:58]} 21... Nxe5 {[%clk 0:01:06.9]} 22. Nxd5
{[%clk 0:00:50.5]} 22... Qb3 {[%clk 0:00:57]} 23. h4 {[%clk 0:00:35.2]} 23...
Nd3+ {[%clk 0:00:52.4]} 24. Kf1 {[%clk 0:00:19.5]} 24... Qxd5 {[%clk 0:00:51.2]}
25. hxg5+ {[%clk 0:00:15.8]} 25... Kg7 {[%clk 0:00:50.5]} 26. Qc3+ {[%clk
0:00:15.6]} 26... Ne5 {[%clk 0:00:46.9]} 27. Rh7+ {[%clk 0:00:12.7]} 27... Kxf8
{[%clk 0:00:42.9]} 28. Kg1 {[%clk 0:00:10.9]} 28... Kg8 {[%clk 0:00:40]} 29. Rh6
{[%clk 0:00:09.7]} 29... Bf5 {[%clk 0:00:38.2]} 30. Re1 {[%clk 0:00:09.8]} 30...
Nf7 {[%clk 0:00:35.8]} 31. Rf6 {[%clk 0:00:07.2]} 31... Rd8 {[%clk 0:00:32.6]}
32. Qf3 {[%clk 0:00:06.6]} 32... Qxf3 {[%clk 0:00:31.6]} 33. gxf3 {[%clk
0:00:07.5]} 33... Bc2 {[%clk 0:00:27.1]} 34. g6 {[%clk 0:00:07]} 34... Ng5
{[%clk 0:00:27]} 35. Re7 {[%clk 0:00:05.2]} 35... Rf8 {[%clk 0:00:17.6]} 36.
Rxf8+ {[%clk 0:00:05]} 36... Kxf8 {[%clk 0:00:18.5]} 37. Rxb7 {[%clk 0:00:05.6]}
37... Bxg6 {[%clk 0:00:17.2]} 38. Rxa7 {[%clk 0:00:05.5]} 38... Nxf3+ {[%clk
0:00:17.1]} 39. Kf2 {[%clk 0:00:06.4]} 39... Nd4 {[%clk 0:00:17.5]} 40. b4
{[%clk 0:00:06.7]} 40... Be8 {[%clk 0:00:16]} 41. Ra8 {[%clk 0:00:06.3]} 41...
Ke7 {[%clk 0:00:15.1]} 42. Ke3 {[%clk 0:00:06.7]} 42... Nb5 {[%clk 0:00:14.4]}
43. Rb8 {[%clk 0:00:06.4]} 43... Nd6 {[%clk 0:00:13.9]} 44. b5 {[%clk 0:00:06]}
44... Nxb5 {[%clk 0:00:13.2]} 45. a4 {[%clk 0:00:06.9]} 45... Nc7 {[%clk
0:00:12.7]} 46. a5 {[%clk 0:00:06.7]} 46... Kd6 {[%clk 0:00:12.6]} 47. Rb7
{[%clk 0:00:05.8]} 47... Bc6 {[%clk 0:00:12.4]} 48. Rb8 {[%clk 0:00:05.8]} 48...
Na6 {[%clk 0:00:11.5]} 49. Rh8 {[%clk 0:00:06.7]} 49... Kc5 {[%clk 0:00:10.4]}
50. Kd3 {[%clk 0:00:07]} 50... Kb5 {[%clk 0:00:10.1]} 51. Rh5+ {[%clk
0:00:06.5]} 51... Ka4 {[%clk 0:00:09.9]} 52. Kc3 {[%clk 0:00:06.1]} 52... Bb5
{[%clk 0:00:09.2]} 53. Kb2 {[%clk 0:00:04.1]} 53... Kxa5 {[%clk 0:00:09.4]} 54.
Kb3 {[%clk 0:00:04.5]} 54... Kb6 {[%clk 0:00:09.3]} 55. Rh6+ {[%clk 0:00:04.6]}
55... Bc6 {[%clk 0:00:10.2]} 56. Kc4 {[%clk 0:00:04.4]} 56... Nc7 {[%clk
0:00:10.8]} 57. Kd4 {[%clk 0:00:04.1]} 57... Nb5+ {[%clk 0:00:10.7]} 58. Kc4
{[%clk 0:00:04.1]} 58... Nc7 {[%clk 0:00:10.2]} 59. Rh7 {[%clk 0:00:04.2]} 59...
Nb5 {[%clk 0:00:10.2]} 60. Kb4 {[%clk 0:00:04.1]} 60... Nc7 {[%clk 0:00:10]} 61.
Rxc7 {[%clk 0:00:03.1]} 61... Kxc7 {[%clk 0:00:09.6]} 1/2-1/2

[Event "*** Titled Tuesday Blitz"]
[Site "Chess.com"]
[Date "2020.04.14"]
[Round "9"]
[White "GadimbayliA"]
[Black "Zavgorodniy_Serg"]
[Result "1-0"]
[WhiteElo "2912"]
[BlackElo "2760"]
[TimeControl "180+1"]
[EndTime "11:44:05 PDT"]
[Termination "GadimbayliA won by resignation"]

1. e4 {[%clk 0:02:58.1]} 1... e5 {[%clk 0:02:59.9]} 2. Nf3 {[%clk 0:02:43.4]}
2... d6 {[%clk 0:03:00.1]} 3. d4 {[%clk 0:02:43.3]} 3... exd4 {[%clk 0:03:00.3]}
4. Nxd4 {[%clk 0:02:44.2]} 4... Nf6 {[%clk 0:03:00.4]} 5. Nc3 {[%clk 0:02:44.8]}
5... Be7 {[%clk 0:03:00.4]} 6. Be2 {[%clk 0:02:42.4]} 6... O-O {[%clk
0:03:00.1]} 7. O-O {[%clk 0:02:43.1]} 7... Re8 {[%clk 0:02:58]} 8. f4 {[%clk
0:02:43.5]} 8... Bf8 {[%clk 0:02:55.8]} 9. Bf3 {[%clk 0:02:44]} 9... c6 {[%clk
0:02:54.8]} 10. Kh1 {[%clk 0:02:41.4]} 10... Nbd7 {[%clk 0:02:54.8]} 11. Re1
{[%clk 0:02:37.9]} 11... Qc7 {[%clk 0:02:53.7]} 12. Be3 {[%clk 0:02:37.5]} 12...
Nc5 {[%clk 0:02:53.1]} 13. Bg1 {[%clk 0:02:37.2]} 13... a5 {[%clk 0:02:52.3]}
14. a4 {[%clk 0:02:14.7]} 14... Nfd7 {[%clk 0:02:51.2]} 15. Qe2 {[%clk
0:02:06.6]} 15... Nb8 {[%clk 0:02:50.7]} 16. Qf2 {[%clk 0:02:04.6]} 16... Nba6
{[%clk 0:02:50.2]} 17. Re2 {[%clk 0:02:04.2]} 17... Nb4 {[%clk 0:02:50.2]} 18.
Rae1 {[%clk 0:02:04.3]} 18... Bd7 {[%clk 0:02:43.7]} 19. Qg3 {[%clk 0:01:59.3]}
19... Rad8 {[%clk 0:02:40.8]} 20. Nf5 {[%clk 0:01:50]} 20... Bxf5 {[%clk
0:02:37.8]} 21. exf5 {[%clk 0:01:50.9]} 21... Rxe2 {[%clk 0:02:33.5]} 22. Rxe2
{[%clk 0:01:50]} 22... Nd7 {[%clk 0:02:23]} 23. Bd4 {[%clk 0:01:35.4]} 23... Kh8
{[%clk 0:01:45.2]} 24. Ne4 {[%clk 0:01:28.1]} 24... f6 {[%clk 0:01:33.2]} 25.
Bh5 {[%clk 0:01:12.6]} 25... d5 {[%clk 0:01:21.5]} 26. Nc3 {[%clk 0:01:10.5]}
26... Bc5 {[%clk 0:01:05.6]} 27. Bxc5 {[%clk 0:00:54.2]} 27... Nxc5 {[%clk
0:01:05.1]} 28. Qe3 {[%clk 0:00:55.1]} 28... Qd6 {[%clk 0:00:38]} 29. Qd4 {[%clk
0:00:54.2]} 29... Nd7 {[%clk 0:00:32.6]} 30. Nd1 {[%clk 0:00:43.9]} 30... Qc5
{[%clk 0:00:22.8]} 31. Qd2 {[%clk 0:00:43.4]} 31... Nf8 {[%clk 0:00:17.8]} 32.
c3 {[%clk 0:00:40.3]} 32... Na6 {[%clk 0:00:17.6]} 33. Nf2 {[%clk 0:00:41]}
33... Nc7 {[%clk 0:00:17.4]} 34. Nd3 {[%clk 0:00:36.1]} 34... Qd6 {[%clk
0:00:17.4]} 35. Bf3 {[%clk 0:00:26]} 35... Re8 {[%clk 0:00:15.6]} 36. Rxe8
{[%clk 0:00:23.2]} 36... Nxe8 {[%clk 0:00:16.5]} 37. Qe3 {[%clk 0:00:24.1]}
37... Nc7 {[%clk 0:00:16.4]} 38. Qb6 {[%clk 0:00:20.5]} 38... h6 {[%clk
0:00:11.8]} 39. Qxb7 {[%clk 0:00:18.8]} 39... Nd7 {[%clk 0:00:11.4]} 40. Qc8+
{[%clk 0:00:16.5]} 40... Nf8 {[%clk 0:00:11.2]} 41. Qb8 {[%clk 0:00:12.4]} 41...
c5 {[%clk 0:00:11]} 42. g3 {[%clk 0:00:09.8]} 42... Kh7 {[%clk 0:00:10.7]} 43.
Kg2 {[%clk 0:00:08.3]} 43... c4 {[%clk 0:00:09.4]} 44. Nc1 {[%clk 0:00:07.4]}
44... Nd7 {[%clk 0:00:09.7]} 45. Qa7 {[%clk 0:00:07.7]} 45... Nc5 {[%clk
0:00:08.6]} 46. Qxa5 {[%clk 0:00:06.5]} 46... d4 {[%clk 0:00:07.5]} 47. cxd4
{[%clk 0:00:05.5]} 47... Qxd4 {[%clk 0:00:07.9]} 48. Qxc7 {[%clk 0:00:05.1]}
48... Qd2+ {[%clk 0:00:06.5]} 49. Ne2 {[%clk 0:00:05.5]} 49... Nd3 {[%clk
0:00:05.7]} 50. Qxc4 {[%clk 0:00:02.7]} 50... Qe3 {[%clk 0:00:05.1]} 51. Qd4
{[%clk 0:00:01.9]} 51... Ne1+ {[%clk 0:00:04.6]} 52. Kf1 {[%clk 0:00:02.5]}
52... Qxf3+ {[%clk 0:00:02.8]} 53. Kxe1 {[%clk 0:00:02.5]} 53... Qh1+ {[%clk
0:00:03]} 54. Kd2 {[%clk 0:00:03]} 54... Qxh2 {[%clk 0:00:03.9]} 55. Qc3 {[%clk
0:00:03.2]} 55... h5 {[%clk 0:00:04.4]} 56. a5 {[%clk 0:00:04.1]} 56... h4
{[%clk 0:00:03.5]} 57. gxh4 {[%clk 0:00:05]} 57... Qxh4 {[%clk 0:00:03.2]} 58.
a6 {[%clk 0:00:05.1]} 58... Qg4 {[%clk 0:00:03.5]} 59. a7 {[%clk 0:00:04.3]}
59... Qxf5 {[%clk 0:00:03.9]} 60. Qd3 {[%clk 0:00:04.1]} 60... Qxd3+ {[%clk
0:00:03.9]} 61. Kxd3 {[%clk 0:00:05]} 1-0

[Event "*** Titled Tuesday Blitz"]
[Site "Chess.com"]
[Date "2020.04.14"]
[Round "9"]
[White "malandragem"]
[Black "DaggiGretarsson"]
[Result "0-1"]
[WhiteElo "2520"]
[BlackElo "2645"]
[TimeControl "180+1"]
[EndTime "11:44:08 PDT"]
[Termination "DaggiGretarsson won by resignation"]

1. e4 {[%clk 0:03:00.9]} 1... g6 {[%clk 0:02:59.3]} 2. d4 {[%clk 0:02:59.2]}
2... Bg7 {[%clk 0:02:59.4]} 3. Nc3 {[%clk 0:02:59.8]} 3... d6 {[%clk 0:02:59.3]}
4. Be3 {[%clk 0:02:59.8]} 4... a6 {[%clk 0:02:58.9]} 5. Qd2 {[%clk 0:02:59.5]}
5... b5 {[%clk 0:02:55.5]} 6. Bd3 {[%clk 0:02:59.1]} 6... Nd7 {[%clk 0:02:54.7]}
7. Nf3 {[%clk 0:02:52.6]} 7... Bb7 {[%clk 0:02:51.3]} 8. a4 {[%clk 0:02:27]}
8... b4 {[%clk 0:02:48.9]} 9. Ne2 {[%clk 0:02:27.2]} 9... c5 {[%clk 0:02:42.1]}
10. d5 {[%clk 0:02:04.6]} 10... Bxb2 {[%clk 0:02:39.6]} 11. O-O {[%clk
0:02:00.7]} 11... Bxa1 {[%clk 0:02:25.8]} 12. Rxa1 {[%clk 0:02:01.6]} 12... Ngf6
{[%clk 0:02:18.8]} 13. h4 {[%clk 0:01:35.6]} 13... h5 {[%clk 0:02:05.9]} 14. Ng3
{[%clk 0:01:33.1]} 14... Ng4 {[%clk 0:02:00.5]} 15. Bf4 {[%clk 0:01:33.5]} 15...
Qc7 {[%clk 0:01:56.4]} 16. a5 {[%clk 0:01:31.9]} 16... Rb8 {[%clk 0:01:34]} 17.
Bc4 {[%clk 0:01:27.7]} 17... Nde5 {[%clk 0:01:24.3]} 18. Bxe5 {[%clk 0:01:27.9]}
18... Nxe5 {[%clk 0:01:18.1]} 19. Nxe5 {[%clk 0:01:28.2]} 19... dxe5 {[%clk
0:01:18]} 20. Qg5 {[%clk 0:01:28.8]} 20... Qd6 {[%clk 0:01:15.4]} 21. Ne2 {[%clk
0:01:20]} 21... Bc8 {[%clk 0:01:13.9]} 22. f4 {[%clk 0:01:18.1]} 22... f6 {[%clk
0:00:42.2]} 23. Qxg6+ {[%clk 0:01:16.2]} 23... Kd8 {[%clk 0:00:41.7]} 24. Qg7
{[%clk 0:01:08.4]} 24... Re8 {[%clk 0:00:39.7]} 25. f5 {[%clk 0:00:56.4]} 25...
Kc7 {[%clk 0:00:38.5]} 26. Qh6 {[%clk 0:00:56.4]} 26... Bd7 {[%clk 0:00:37.4]}
27. Qxh5 {[%clk 0:00:56.2]} 27... Rh8 {[%clk 0:00:33.9]} 28. Qg4 {[%clk
0:00:56.6]} 28... Rbg8 {[%clk 0:00:32.6]} 29. Qh3 {[%clk 0:00:55.4]} 29... Be8
{[%clk 0:00:30.4]} 30. Kf2 {[%clk 0:00:52.3]} 30... Bh5 {[%clk 0:00:29.4]} 31.
Rh1 {[%clk 0:00:40]} 31... Rg4 {[%clk 0:00:26.4]} 32. Qe3 {[%clk 0:00:27.8]}
32... Rhg8 {[%clk 0:00:18.8]} 33. g3 {[%clk 0:00:23.5]} 33... Rh8 {[%clk
0:00:18.8]} 34. Rg1 {[%clk 0:00:23.6]} 34... Kb7 {[%clk 0:00:18.4]} 35. Nc1
{[%clk 0:00:23.4]} 35... Rc8 {[%clk 0:00:16.8]} 36. Nd3 {[%clk 0:00:15.8]} 36...
Rgg8 {[%clk 0:00:14.9]} 37. Nb2 {[%clk 0:00:14.6]} 37... Qd7 {[%clk 0:00:13.7]}
38. Rb1 {[%clk 0:00:13.9]} 38... Qc7 {[%clk 0:00:11]} 39. d6 {[%clk 0:00:14.4]}
39... exd6 {[%clk 0:00:10.3]} 40. Bd5+ {[%clk 0:00:15]} 40... Ka7 {[%clk
0:00:09.6]} 41. Nc4 {[%clk 0:00:14.7]} 41... Bf7 {[%clk 0:00:06.8]} 42. Bxf7
{[%clk 0:00:12.8]} 42... Qxf7 {[%clk 0:00:06.8]} 43. Nxd6 {[%clk 0:00:13.4]}
43... Qa2 {[%clk 0:00:06.7]} 44. Rd1 {[%clk 0:00:12.4]} 44... Qxc2+ {[%clk
0:00:05.4]} 45. Rd2 {[%clk 0:00:12.3]} 45... Qa4 {[%clk 0:00:05.4]} 46. Nxc8+
{[%clk 0:00:12.4]} 46... Rxc8 {[%clk 0:00:05.2]} 47. Rd6 {[%clk 0:00:12.4]}
47... Qxa5 {[%clk 0:00:04.9]} 48. Qh6 {[%clk 0:00:11.1]} 48... Qc7 {[%clk
0:00:03.8]} 49. Qxf6 {[%clk 0:00:11.4]} 49... Qb7 {[%clk 0:00:03.9]} 50. Qe6
{[%clk 0:00:11.8]} 50... Rc7 {[%clk 0:00:02]} 51. f6 {[%clk 0:00:12.3]} 51... b3
{[%clk 0:00:02.2]} 52. Rxa6+ {[%clk 0:00:05.9]} 52... Qxa6 {[%clk 0:00:01.9]}
53. Qxb3 {[%clk 0:00:06]} 53... Qxf6+ {[%clk 0:00:01.8]} 54. Kg2 {[%clk
0:00:04.6]} 54... Rf7 {[%clk 0:00:01.9]} 55. Qa3+ {[%clk 0:00:05.5]} 55... Kb7
{[%clk 0:00:02.2]} 56. Qb2+ {[%clk 0:00:05.6]} 56... Kc7 {[%clk 0:00:02.3]} 57.
Qe2 {[%clk 0:00:06.5]} 57... Qd6 {[%clk 0:00:01.7]} 58. Kh3 {[%clk 0:00:06.9]}
58... Qe6+ {[%clk 0:00:01.8]} 59. Kg2 {[%clk 0:00:06.7]} 59... c4 {[%clk
0:00:02.2]} 60. Qe3 {[%clk 0:00:06.3]} 60... Kd7 {[%clk 0:00:02.5]} 61. Qc5
{[%clk 0:00:06.7]} 61... Ke8 {[%clk 0:00:02.7]} 62. Qc8+ {[%clk 0:00:06.4]}
62... Qxc8 {[%clk 0:00:02.1]} 0-1